Workbook

Sheet Ewing
A1: Ewing Township Board of Education | G1: Powered by
A2: Employee Health Benefits Calculator
A3: Effective 7/1/25 to 6/30/26
B5: Enter Estimated Annual Pensionable Salary | G5: Select 10 or 12 Month Employee
G6: 10 Month
B9: Legacy Medical and Rx Plans (per pay period)
B10: These plans are only available to employees hired prior to July 1, 2020
E11: Single | F11: Parent/Child(ren) | G11: 2 Adult | H11: Family
B12: Aetna Choice POS II $10 & Rx | E12: =Calculations!B50 ->  | F12: =Calculations!C50 ->  | G12: =Calculations!D50 ->  | H12: =Calculations!E50 -> 
B13: Aetna Choice POS II $15 & Rx | E13: =Calculations!B51 ->  | F13: =Calculations!C51 ->  | G13: =Calculations!D51 ->  | H13: =Calculations!E51 -> 
B14: Aetna Choice POS II $15/$25 & Rx | E14: =Calculations!B52 ->  | F14: =Calculations!C52 ->  | G14: =Calculations!D52 ->  | H14: =Calculations!E52 -> 
B15: Aetna Choice POS II $20/$20 & Rx | E15: =Calculations!B53 ->  | F15: =Calculations!C53 ->  | G15: =Calculations!D53 ->  | H15: =Calculations!E53 -> 
B16: Aetna Choice POS II $20/$35 & Rx | E16: =Calculations!B54 ->  | F16: =Calculations!C54 ->  | G16: =Calculations!D54 ->  | H16: =Calculations!E54 -> 
B17: Aetna HMO $10 & Rx | E17: =Calculations!B55 ->  | F17: =Calculations!C55 ->  | G17: =Calculations!D55 ->  | H17: =Calculations!E55 -> 
B18: Aetna HMO $15/$25 & Rx | E18: =Calculations!B56 ->  | F18: =Calculations!C56 ->  | G18: =Calculations!D56 ->  | H18: =Calculations!E56 -> 
B19: Aetna HMO $20/$30 & Rx | E19: =Calculations!B57 ->  | F19: =Calculations!C57 ->  | G19: =Calculations!D57 ->  | H19: =Calculations!E57 -> 
B21: Estimated NJEHP & GSHP (per pay period)
E22: Single | F22: Parent/Child(ren) | G22: 2 Adult | H22: Family
B23: NJEHP & Rx | E23: =Calculations!B14 ->  | F23: =Calculations!C14 ->  | G23: =Calculations!D14 ->  | H23: =Calculations!E14 -> 
B24: GSHP & Rx | E24: =Calculations!B15 ->  | F24: =Calculations!C15 ->  | G24: =Calculations!D15 ->  | H24: =Calculations!E15 -> 
A27: *NJEHP and GSHP are based on a percentage of pensionable salary. Final contribution amount will be determined by payroll.

Sheet Calculations (hidden)
A2: Salary from Calculator Sheet | B2: =Ewing!B6 -> 0
A3: Month Employment Indicator | B3: =IF(C3="10 Month",1,IF(C3="12 Month",2,0)) -> 1 | C3: =Ewing!$G$6 -> 10 Month | D3: 10 Month | E3: 12 Month
A4: NJEHP Contribution Max | B4: =IF(B2>125000,1,0) -> 0
B6: Single | C6: P+C | D6: 2ADULT | E6: FAMILY
A7: Chapter 78 Rate (Legacy Plans) | B7: =VLOOKUP($B$2,'Legacy Plan Table'!$A$1:$F$21,3) ->  | C7: =VLOOKUP($B$2,'Legacy Plan Table'!$A$1:$F$21,4) ->  | D7: =VLOOKUP($B$2,'Legacy Plan Table'!$A$1:$F$21,5) ->  | E7: =VLOOKUP($B$2,'Legacy Plan Table'!$A$1:$F$21,6) -> 
A8: NJEHP Rate | B8: =VLOOKUP($B$2,'NJEHP Table'!$A$1:$F$11,3) ->  | C8: =VLOOKUP($B$2,'NJEHP Table'!$A$1:$F$11,4) ->  | D8: =VLOOKUP($B$2,'NJEHP Table'!$A$1:$F$11,5) ->  | E8: =VLOOKUP($B$2,'NJEHP Table'!$A$1:$F$11,6) -> 
A9: GSHP Rate | B9: =VLOOKUP($B$2,'GSHP Table'!$A$1:$F$11,3) ->  | C9: =VLOOKUP($B$2,'GSHP Table'!$A$1:$F$11,4) ->  | D9: =VLOOKUP($B$2,'GSHP Table'!$A$1:$F$11,5) ->  | E9: =VLOOKUP($B$2,'GSHP Table'!$A$1:$F$11,6) -> 
A11: NJEHP Annual Employee Contribution | B11: =IF($B$4=0,B8*$B$2,B8*125000) -> 
A12: GSHP Annual Employee Contribution
A14: NJEHP Per Paycheck Employee Contribution | B14: =IFERROR(IF($B$3=1,B11/20,IF($B$3=2,B11/24,0))," ") -> 
A15: GSHP Per Paycheck Employee Contribution
A17: Monthly Full Premium
A18: Plan Name | B18: Single Rate | C18: P+C Rate | D18: 2 Adult Rate | E18: Family Rate
A19: Aetna Choice POS II $10 & Rx | B19: ='Rates as of 202507'!B20 -> 1669.77 | C19: ='Rates as of 202507'!B21 -> 2903.28 | D19: ='Rates as of 202507'!B22 -> 3446.76 | E19: ='Rates as of 202507'!B23 -> 4619.89
A20: Aetna Choice POS II $15 & Rx | B20: ='Rates as of 202507'!C20 -> 1624.77 | C20: ='Rates as of 202507'!C21 -> 2820.28 | D20: ='Rates as of 202507'!C22 -> 3349.76 | E20: ='Rates as of 202507'!C23 -> 4483.89
A21: Aetna Choice POS II $15/$25 & Rx | B21: ='Rates as of 202507'!D20 -> 1576.77 | C21: ='Rates as of 202507'!D21 -> 2732.28 | D21: ='Rates as of 202507'!D22 -> 3258.76 | E21: ='Rates as of 202507'!D23 -> 4351.89
A22: Aetna Choice POS II $20/$20 & Rx | B22: ='Rates as of 202507'!E20 -> 1503.77 | C22: ='Rates as of 202507'!E21 -> 2604.28 | D22: ='Rates as of 202507'!E22 -> 3119.76 | E22: ='Rates as of 202507'!E23 -> 4152.89
A23: Aetna Choice POS II $20/$35 & Rx | B23: ='Rates as of 202507'!F20 -> 1364.77 | C23: ='Rates as of 202507'!F21 -> 2339.28 | D23: ='Rates as of 202507'!F22 -> 2837.76 | E23: ='Rates as of 202507'!F23 -> 3749.89
A24: Aetna HMO $10 & Rx | B24: ='Rates as of 202507'!G20 -> 1564.77 | C24: ='Rates as of 202507'!G21 -> 2718.28 | D24: ='Rates as of 202507'!G22 -> 3241.76 | E24: ='Rates as of 202507'!G23 -> 4325.89
A25: Aetna HMO $15/$25 & Rx | B25: ='Rates as of 202507'!H20 -> 1467.77 | C25: ='Rates as of 202507'!H21 -> 2536.28 | D25: ='Rates as of 202507'!H22 -> 3043.76 | E25: ='Rates as of 202507'!H23 -> 4047.89
A26: Aetna HMO $20/$30 & Rx | B26: ='Rates as of 202507'!I20 -> 1404.77 | C26: ='Rates as of 202507'!I21 -> 2420.28 | D26: ='Rates as of 202507'!I22 -> 2922.76 | E26: ='Rates as of 202507'!I23 -> 3868.89
A28: Annual Full Premium
A29: =A19 -> Aetna Choice POS II $10 & Rx | B29: =B19*12 -> 20037.24 | C29: 34839.36 | D29: 41361.12 | E29: 55438.68
A30: Aetna Choice POS II $15 & Rx | B30: 19497.24 | C30: 33843.36 | D30: 40197.12 | E30: 53806.68
A31: Aetna Choice POS II $15/$25 & Rx | B31: 18921.24 | C31: 32787.36 | D31: 39105.12 | E31: 52222.68
A32: Aetna Choice POS II $20/$20 & Rx | B32: 18045.24 | C32: 31251.36 | D32: 37437.12 | E32: 49834.68
A33: Aetna Choice POS II $20/$35 & Rx | B33: 16377.24 | C33: 28071.36 | D33: 34053.12 | E33: 44998.68
A34: Aetna HMO $10 & Rx | B34: 18777.24 | C34: 32619.36 | D34: 38901.12 | E34: 51910.68
A35: Aetna HMO $15/$25 & Rx | B35: 17613.24 | C35: 30435.36 | D35: 36525.12 | E35: 48574.68
A36: Aetna HMO $20/$30 & Rx | B36: 16857.24 | C36: 29043.36 | D36: 35073.12 | E36: 46426.68
A38: Annual Employee Contribution
A39: =A19 -> Aetna Choice POS II $10 & Rx | B39: =B29*B$7 -> 
A40: Aetna Choice POS II $15 & Rx
A41: Aetna Choice POS II $15/$25 & Rx
A42: Aetna Choice POS II $20/$20 & Rx
A43: Aetna Choice POS II $20/$35 & Rx
A44: Aetna HMO $10 & Rx
A45: Aetna HMO $15/$25 & Rx
A46: Aetna HMO $20/$30 & Rx
A49: Employee Per Paycheck Contribution
A50: =A19 -> Aetna Choice POS II $10 & Rx | B50: =IFERROR(IF($B$3=1,B39/20,IF($B$3=2,B39/24,0))," ") -> 
A51: Aetna Choice POS II $15 & Rx
A52: Aetna Choice POS II $15/$25 & Rx
A53: Aetna Choice POS II $20/$20 & Rx
A54: Aetna Choice POS II $20/$35 & Rx
A55: Aetna HMO $10 & Rx
A56: Aetna HMO $15/$25 & Rx
A57: Aetna HMO $20/$30 & Rx

Sheet Legacy Plan Table (hidden)
B1: Salary | C1: Single | D1: Parent/Child(ren) | E1: Member/Spouse | F1: Family
A2: 0.01 | B2: Less than $20,000 | C2: 0.04 | D2: 0.04 | E2: 0.04 | F2: 0.04
A3: 20000 | B3: $20,000 - $24,999.99 | C3: 0.04 | D3: 0.04 | E3: 0.04 | F3: 0.04
A4: 25000 | B4: $25,000 - $29,999.99 | C4: 0.04 | D4: 0.04 | E4: 0.04 | F4: 0.04
A5: 30000 | B5: $30,000 - $34,999.99 | C5: 0.04 | D5: 0.04 | E5: 0.04 | F5: 0.04
A6: 35000 | B6: $35,000 - $39,999.99 | C6: 0.04 | D6: 0.04 | E6: 0.04 | F6: 0.04
A7: 40000 | B7: $40,000 - $44,999.99 | C7: 0.04 | D7: 0.04 | E7: 0.04 | F7: 0.04
A8: 45000 | B8: $45,000 - $49,999.99 | C8: 0.04 | D8: 0.04 | E8: 0.04 | F8: 0.04
A9: 50000 | B9: $50,000 - $54,999.99 | C9: 0.14 | D9: 0.14 | E9: 0.14 | F9: 0.14
A10: 55000 | B10: $55,000 - $59.999.99 | C10: 0.14 | D10: 0.14 | E10: 0.14 | F10: 0.14
A12: 60000 | B12: $60,000 - $64,999.99 | C12: 0.14 | D12: 0.14 | E12: 0.14 | F12: 0.14
A13: 65000 | B13: $65,000 - $69,999.99 | C13: 0.19 | D13: 0.19 | E13: 0.19 | F13: 0.19
A14: 70000 | B14: $70,000 - $74,999.99 | C14: 0.19 | D14: 0.19 | E14: 0.19 | F14: 0.19
A15: 75000 | B15: $75,000 - $79,999.99 | C15: 0.25 | D15: 0.25 | E15: 0.25 | F15: 0.25
A16: 80000 | B16: $80,000 - $84,999.99 | C16: 0.25 | D16: 0.25 | E16: 0.25 | F16: 0.25
A17: 85000 | B17: $85,000 - $89,999.99 | C17: 0.25 | D17: 0.25 | E17: 0.25 | F17: 0.25
A18: 90000 | B18: $90,000 - $94,999.99 | C18: 0.25 | D18: 0.25 | E18: 0.25 | F18: 0.25
A19: 95000 | B19: $95,000 - $99,999.99 | C19: 0.25 | D19: 0.25 | E19: 0.25 | F19: 0.25
A20: 100000 | B20: $100,000 - $109,999.99 | C20: 0.25 | D20: 0.25 | E20: 0.25 | F20: 0.25
A21: 110000 | B21: $110,000 and over | C21: 0.25 | D21: 0.25 | E21: 0.25 | F21: 0.25
A22: 1000000

Sheet NJEHP Table (hidden)
B1: Salary | C1: Single | D1: Parent/Child(ren) | E1: Member/Spouse | F1: Family
C2: 0.017 | D2: 0.022 | E2: 0.028 | F2: 0.033
A3: 0.01 | B3: Up to 40,000 | C3: 0.017 | D3: 0.022 | E3: 0.028 | F3: 0.033
A4: 40000.99 | B4: 40001-50000 | C4: 0.019 | D4: 0.025 | E4: 0.033 | F4: 0.039
A5: 50000.99 | B5: 50001-60000 | C5: 0.022 | D5: 0.028 | E5: 0.039 | F5: 0.044
A6: 60000.99 | B6: 60001-70000 | C6: 0.025 | D6: 0.03 | E6: 0.044 | F6: 0.05
A7: 70000.99 | B7: 70001-80000 | C7: 0.028 | D7: 0.033 | E7: 0.05 | F7: 0.055
A8: 80000.99 | B8: 80001-90000 | C8: 0.03 | D8: 0.036 | E8: 0.055 | F8: 0.06
A9: 90000.99 | B9: 90001-100000 | C9: 0.033 | D9: 0.039 | E9: 0.06 | F9: 0.066
A10: 100000.99 | B10: 100001-125000 | C10: 0.036 | D10: 0.044 | E10: 0.066 | F10: 0.072
A11: 100000001
B19: LE Peer Reviewed 4/2/2025

Sheet GSHP Table (hidden)
B1: Salary | C1: Single | D1: Parent/Child(ren) | E1: Member/Spouse | F1: Family | J1: Salary | K1: Single | L1: Parent/Child(ren) | M1: Member/Spouse | N1: Family
C2: =IF(K2/2<0.015,0.015,K2/2) -> 0.015 | D2: =IF(L2/2<0.015,0.015,L2/2) -> 0.015 | E2: =IF(M2/2<0.015,0.015,M2/2) -> 0.015 | F2: =IF(N2/2<0.015,0.015,N2/2) -> 0.0165 | K2: 0.017 | L2: 0.022 | M2: 0.028 | N2: 0.033
A3: 0.01 | B3: Up to 40,000 | C3: =IF(K3/2<0.015,0.015,K3/2) -> 0.015 | D3: =IF(L3/2<0.015,0.015,L3/2) -> 0.015 | E3: =IF(M3/2<0.015,0.015,M3/2) -> 0.015 | F3: =IF(N3/2<0.015,0.015,N3/2) -> 0.0165 | I3: 0.01 | J3: Up to 40,000 | K3: 0.017 | L3: 0.022 | M3: 0.028 | N3: 0.033
A4: 40000.99 | B4: 40001-50000 | C4: 0.015 | D4: 0.015 | E4: 0.0165 | F4: 0.0195 | I4: 40000.99 | J4: 40001-50000 | K4: 0.019 | L4: 0.025 | M4: 0.033 | N4: 0.039
A5: 50000.99 | B5: 50001-60000 | C5: 0.015 | D5: 0.015 | E5: 0.0195 | F5: 0.022 | I5: 50000.99 | J5: 50001-60000 | K5: 0.022 | L5: 0.028 | M5: 0.039 | N5: 0.044
A6: 60000.99 | B6: 60001-70000 | C6: 0.015 | D6: 0.015 | E6: 0.022 | F6: 0.025 | I6: 60000.99 | J6: 60001-70000 | K6: 0.025 | L6: 0.03 | M6: 0.044 | N6: 0.05
A7: 70000.99 | B7: 70001-80000 | C7: 0.015 | D7: 0.0165 | E7: 0.025 | F7: 0.0275 | I7: 70000.99 | J7: 70001-80000 | K7: 0.028 | L7: 0.033 | M7: 0.05 | N7: 0.055
A8: 80000.99 | B8: 80001-90000 | C8: 0.015 | D8: 0.018 | E8: 0.0275 | F8: 0.03 | I8: 80000.99 | J8: 80001-90000 | K8: 0.03 | L8: 0.036 | M8: 0.055 | N8: 0.06
A9: 90000.99 | B9: 90001-100000 | C9: 0.0165 | D9: 0.0195 | E9: 0.03 | F9: 0.033 | I9: 90000.99 | J9: 90001-100000 | K9: 0.033 | L9: 0.039 | M9: 0.06 | N9: 0.066
A10: 100000.99 | B10: 100001-125000 | C10: 0.018 | D10: 0.022 | E10: 0.033 | F10: 0.036 | I10: 100000.99 | J10: 100001-125000 | K10: 0.036 | L10: 0.044 | M10: 0.066 | N10: 0.072
A11: 100000001 | I11: 100000001
C12: GSHP Table | K12: NJEHP Table
B20: LE Peer Reviewed 4/5/2025

Sheet Rates as of 202507 (hidden)
B3: Legacy Medical
B4: Aetna Choice POS II $10 | C4: Aetna Choice POS II $15 | D4: Aetna Choice POS II $15/$25 | E4: Aetna Choice POS II $20/$20 | F4: Aetna Choice POS II $20/$35 | G4: Aetna HMO $10 | H4: Aetna HMO $15/$25 | I4: Aetna HMO $20/$30
A5: Single | B5: 1241 | C5: 1196 | D5: 1148 | E5: 1075 | F5: 936 | G5: 1136 | H5: 1039 | I5: 976
A6: Parent/Child | B6: 2303 | C6: 2220 | D6: 2132 | E6: 2004 | F6: 1739 | G6: 2118 | H6: 1936 | I6: 1820
A7: EE/Spouse | B7: 2482 | C7: 2385 | D7: 2294 | E7: 2155 | F7: 1873 | G7: 2277 | H7: 2079 | I7: 1958
A8: Family | B8: 3548 | C8: 3412 | D8: 3280 | E8: 3081 | F8: 2678 | G8: 3254 | H8: 2976 | I8: 2797
B10: Legacy Rx
B12: RX
A13: Single | B13: 428.77
A14: Parent/Child | B14: 600.28
A15: EE/Spouse | B15: 964.76
A16: Family | B16: 1071.89
B18: Total Legacy Medical & Rx 7/1/2025 to 6/30/2026
B19: Aetna Choice POS II $10 + RX | C19: Aetna Choice POS II $15 + RX | D19: Aetna Choice POS II $15/$25 + RX | E19: Aetna Choice POS II $20/$20 + RX | F19: Aetna Choice POS II $20/$35 + RX | G19: Aetna HMO $10 + RX | H19: Aetna HMO $15/$25 + RX | I19: Aetna HMO $20/$30 + RX
A20: Single | B20: =B5+B13 -> 1669.77 | C20: =C5+B13 -> 1624.77 | D20: =D5+B13 -> 1576.77 | E20: =E5+B13 -> 1503.77 | F20: =F5+B13 -> 1364.77 | G20: =G5+B13 -> 1564.77 | H20: =H5+B13 -> 1467.77 | I20: =I5+B13 -> 1404.77
A21: Parent/Child | B21: =B6+B14 -> 2903.28 | C21: =C6+B14 -> 2820.28 | D21: =D6+B14 -> 2732.28 | E21: =E6+B14 -> 2604.28 | F21: =F6+B14 -> 2339.28 | G21: =G6+B14 -> 2718.28 | H21: =H6+B14 -> 2536.28 | I21: =I6+B14 -> 2420.28
A22: EE/Spouse | B22: 3446.76 | C22: 3349.76 | D22: 3258.76 | E22: 3119.76 | F22: 2837.76 | G22: 3241.76 | H22: 3043.76 | I22: 2922.76
A23: Family | B23: 4619.89 | C23: 4483.89 | D23: =D8+B16 -> 4351.89 | E23: 4152.89 | F23: 3749.89 | G23: 4325.89 | H23: 4047.89 | I23: 3868.89
A26: LE Peer Reviewed 4/2/2025
